bitfinex-derivatives/quotes_SOLF0:USTF0_20250329
["timestamp","ask_amount","ask_price","bid_price","bid_amount"]
[1743269758413,0.0510268,125.42,125.39,0.05246231]
[1743269759001,0.0510268,125.42,125.4,7.9783]
[1743269759205,262.86,125.45,125.39,0.05246231]
[1743269759614,7.9758,125.44,125.42,7.9768]
[1743269760117,262.86,125.45,125.37,37.18]
[1743269760310,262.86,125.45,125.37,61.8966146]
[1743269760513,43.64951421,125.47,125.4,0.0592013]
[1743269760715,43.64951421,125.47,125.45,7.9747]
[1743269761105,43.64951421,125.47,125.46,7.9744]
[1743269761409,30.51571421,125.47,125.46,7.9744]
[1743269761612,17.38171421,125.47,125.46,7.9744]
[1743269761816,17.38171421,125.47,125.45,0.05527047]
[1743269762016,58.0403979,125.49,125.45,0.05527047]
[1743269762218,0.05777716,125.47,125.45,0.05527047]
[1743269762419,0.05777716,125.47,125.45,8.03007047]
[1743269763216,0.05777716,125.47,125.45,0.05527047]
[1743269764518,7.9744,125.46,125.45,0.05527047]
[1743269765415,7.9773,125.42,125.38,37.18]
[1743269765617,28.7841146,125.48,125.37,402.18]
[1743269765816,28.7841146,125.48,125.39,7.9789]
[1743269766016,28.7841146,125.48,125.37,402.18]
[1743269766017,7.9766,125.43,125.37,402.18]
[1743269766417,7.9776,125.42,125.39,7.9783]
[1743269766621,0.05068943,125.41,125.39,0.05300792]
[1743269766814,61.8966146,125.45,125.36,4.1289]
[1743269767015,0.05034143,125.41,125.39,0.05921807]
[1743269768121,8.02834143,125.41,125.39,0.05921807]
[1743269768316,0.05034143,125.41,125.39,0.05921807]
[1743269768820,7.9783,125.4,125.39,0.05921807]
[1743269770818,0.05034143,125.41,125.39,0.05921807]
[1743269771119,0.05034143,125.41,125.4,7.9783]
[1743269771926,130.94854267,125.47,125.39,37.23921807]
[1743269772113,130.94854267,125.47,125.4,4.0848]
[1743269772721,130.94854267,125.47,125.4,28.8014146]
[1743269772917,110.98820133,125.46,125.45,7.9751]
[1743269773119,74.15802844,125.48,125.45,45.1551]
[1743269773318,74.15802844,125.48,125.45,37.18]
[1743269773319,0.05469847,125.47,125.45,37.18]
[1743269773616,0.05469847,125.47,125.46,7.9741]
[1743269775133,0.05469847,125.47,125.45,37.24064146]
[1743269775320,0.05469847,125.47,125.39,37.18]
[1743269775519,5.05968999,125.46,125.39,37.18]
[1743269775818,4.3058,125.47,125.39,37.18]
[1743269776317,7.9767,125.43,125.4,7.978]
[1743269776518,7.9767,125.43,125.42,0.05405792]
[1743269777023,8.03451818,125.44,125.42,0.05405792]
[1743269777722,7.9764,125.43,125.42,0.05405792]
[1743269778121,8.03411818,125.44,125.42,0.05405792]
[1743269778321,0.05841818,125.44,125.42,0.05405792]
[1743269779625,8.03421818,125.44,125.42,0.05405792]
[1743269781019,7.9764,125.43,125.42,0.05405792]
[1743269781524,0.05841818,125.44,125.42,0.05405792]
[1743269781715,8.03451818,125.44,125.42,0.05405792]
[1743269781920,0.05841818,125.44,125.42,0.05405792]
[1743269782426,7.9764,125.43,125.42,0.05405792]
[1743269782629,0.05841818,125.44,125.42,0.05405792]
[1743269783427,4.116,125.5,125.43,37.2]
[1743269784226,7.9741,125.47,125.43,37.2]
[1743269784627,0.05709077,125.46,125.44,0.0512224]
[1743269785825,0.05709077,125.46,125.44,8.0269224]
[1743269786024,8.03159077,125.46,125.44,8.0269224]
[1743269786226,0.05709077,125.46,125.44,0.0512224]
[1743269786425,0.05709077,125.46,125.45,7.9751]
[1743269788234,7.9716,125.51,125.48,7.9728]
[1743269788428,7.9716,125.51,125.44,0.0512224]
[1743269788429,4.0086,125.52,125.43,37.2]
[1743269788830,7.9716,125.51,125.48,7.9728]
[1743269789327,4.0086,125.52,125.43,37.2]
[1743269789527,4.0086,125.52,125.49,7.9722]
[1743269789528,0.05587543,125.51,125.49,7.9722]
[1743269789732,4.0086,125.52,125.49,7.9722]
[1743269790033,0.05928747,125.51,125.49,8.03112491]
[1743269790232,0.05928747,125.51,125.49,0.05892491]
[1743269790933,0.05928747,125.51,125.44,37.18]
[1743269791134,29.0386146,125.51,125.41,8.701]
[1743269791331,5.07060745,125.5,125.42,37.18]
[1743269791633,5.07060745,125.49,125.42,37.18]
[1743269791832,28.7252146,125.52,125.42,37.18]
[1743269792034,0.05560363,125.47,125.44,0.05575166]
[1743269792236,0.05560363,125.47,125.46,7.9739]
[1743269792432,0.05560363,125.47,125.46,45.1539]
[1743269796841,4.0086,125.52,125.46,37.18]
[1743269797437,4.322,125.53,125.49,7.9724]
[1743269797635,263.0,125.54,125.49,7.9724]
[1743269797945,0.05782813,125.53,125.5,0.05475021]
[1743269798543,8.02792813,125.53,125.5,8.02635021]
[1743269798841,8.02792813,125.53,125.5,45.18635021]
[1743269799941,8.02792813,125.53,125.51,7.971]
[1743269800147,0.05782813,125.53,125.5,37.21475021]
[1743269800445,0.05782813,125.53,125.51,7.9709]
[1743269800947,0.05782813,125.53,125.5,0.05475021]
[1743269801142,0.05782813,125.53,125.44,1.39882249]
[1743269801337,24.7166146,125.51,125.42,27.95761913]
[1743269801541,9.32821789,125.5,125.42,23.98371913]
[1743269801742,5.06611789,125.49,125.42,37.16]
[1743269801939,7.9747,125.46,125.42,37.16]
[1743269802142,4.2621,125.5,125.42,37.16]
[1743269802346,0.05647678,125.45,125.43,0.06071938]
[1743269802544,4.2621,125.5,125.43,0.06071938]
[1743269802745,0.05776475,125.45,125.43,0.06071938]
[1743269802948,4.2621,125.5,125.43,0.06071938]
[1743269803246,5.06840941,125.49,125.43,0.06071938]
[1743269803446,5.12441373,125.48,125.43,0.06071938]
[1743269803644,7.9751,125.45,125.43,0.06071938]
[1743269803943,4.2621,125.5,125.43,0.06071938]
[1743269804139,0.05484589,125.45,125.43,0.06071938]
[1743269804346,7.9748,125.46,125.43,8.03661938]
[1743269804548,0.05654124,125.45,125.43,8.03661938]
[1743269805046,0.05654124,125.45,125.43,0.06071938]
[1743269805445,8.03164124,125.45,125.43,8.03681938]
[1743269805844,8.03164124,125.45,125.43,0.06071938]
[1743269806347,7.9757,125.44,125.43,0.06071938]
[1743269811043,37.21654124,125.45,125.31,24.7166146]
[1743269811348,24.7166146,125.42,125.33,37.16]
[1743269811548,7.9795,125.38,125.33,37.16]
[1743269811850,7.9795,125.38,125.35,7.9809]
[1743269812149,7.9795,125.38,125.35,8.03151904]
[1743269812449,8.04026621,125.38,125.35,8.03151904]
[1743269813245,7.9803,125.37,125.35,0.05061904]
[1743269813645,0.06076621,125.38,125.35,0.05061904]
[1743269813846,8.04056621,125.38,125.35,8.03201904]
[1743269815252,0.06076621,125.38,125.36,7.9807]
[1743269815752,0.06076621,125.38,125.35,0.05061904]
[1743269815753,8.04036621,125.38,125.35,8.03161904]
[1743269815948,8.04036621,125.38,125.35,0.05061904]
[1743269816351,8.04036621,125.38,125.35,8.03161904]
[1743269816547,7.9805,125.37,125.35,0.05061904]
[1743269817249,0.06076621,125.38,125.35,0.05061904]
[1743269818445,7.9808,125.36,125.35,0.05061904]
[1743269820959,7.98,125.36,125.26,23.98780089]
[1743269821252,7.98,125.36,125.28,1.40179422]
[1743269821253,8.4041,125.35,125.28,1.40179422]
[1743269821458,7.9844,125.31,125.27,9.38813934]
[1743269821664,7.9844,125.31,125.27,7.9862]
[1743269821954,263.08,125.37,125.26,61.8966146]
[1743269822254,33.1207146,125.42,125.29,24.7166146]
[1743269822554,5.0388889,125.41,125.32,7.9831]
[1743269822755,33.1207146,125.42,125.3,37.18]
[1743269823154,7.9802,125.37,125.3,37.18]
[1743269823348,0.05578482,125.37,125.35,0.05419989]
[1743269823556,0.05578482,125.37,125.32,37.18]
[1743269823756,7.9819,125.35,125.32,37.18]
[1743269823959,7.9819,125.35,125.33,0.05643549]
[1743269824155,7.9821,125.34,125.33,0.05643549]
[1743269824350,0.05607434,125.36,125.27,8.3216]
[1743269824548,4.1162,125.35,125.28,38.5818063]
[1743269824761,7.9809,125.36,125.33,7.9823]
[1743269825258,41.2962,125.41,125.32,37.18]
[1743269825450,5.03105762,125.4,125.32,37.18]
[1743269825649,0.0535886,125.38,125.35,0.0549104]
[1743269826353,7.9808,125.36,125.35,0.0549104]
[1743269826756,0.0535886,125.38,125.35,0.0549104]
[1743269827557,0.0535886,125.38,125.37,7.9802]
[1743269828255,0.0535886,125.38,125.36,37.18]
[1743269828851,0.0535886,125.38,125.37,7.9802]
[1743269829056,0.0535886,125.38,125.36,37.18]
[1743269829258,0.0535886,125.38,125.35,0.0549104]
[1743269829459,0.0535886,125.38,125.35,8.0361104]
[1743269829654,7.9807,125.37,125.35,0.0549104]
[1743269829860,0.0535886,125.38,125.35,0.0549104]
[1743269830252,7.9808,125.36,125.35,0.0549104]
[1743269830558,0.0535886,125.38,125.35,0.0549104]
[1743269830955,7.9808,125.36,125.35,0.0549104]
[1743269831156,0.0535886,125.38,125.31,37.18]
[1743269831552,7.9811,125.36,125.31,37.18]
[1743269831755,7.9811,125.36,125.33,7.9823]
[1743269831959,7.9811,125.36,125.31,37.18]
[1743269832360,0.05643087,125.35,125.32,0.05876338]
[1743269832757,4.3475,125.42,125.32,0.05876338]
[1743269832963,4.3475,125.42,125.32,34.69400581]
[1743269833162,4.3475,125.42,125.33,1.4012778]
[1743269833362,4.3475,125.42,125.38,7.9795]
[1743269833959,0.0557136,125.41,125.39,0.05640424]
[1743269834564,0.0557136,125.41,125.4,7.9783]
[1743269835259,0.0557136,125.41,125.39,8.03500424]
[1743269835455,0.0557136,125.41,125.39,0.05640424]
[1743269835964,0.0557136,125.41,125.37,37.18]
[1743269836165,0.0557136,125.41,125.34,37.18]
[1743269836364,7.9792,125.39,125.35,7.9811]
[1743269836556,37.18,125.43,125.35,7.9811]
[1743269836867,7.9794,125.39,125.35,7.9811]
[1743269837068,7.9794,125.39,125.38,0.05020392]
[1743269839162,0.05057255,125.4,125.32,4.3047]
[1743269839366,0.05057255,125.4,125.33,37.18]
[1743269839568,37.18,125.43,125.33,37.18]
[1743269839767,7.9792,125.39,125.33,37.18]
[1743269839967,37.18,125.43,125.33,37.18]
[1743269840375,0.05891292,125.39,125.37,0.05764791]
[1743269840972,7.9795,125.38,125.37,0.05764791]
[1743269847875,61.96054093,125.39,125.29,4.3133]
[1743269848075,5.06503711,125.38,125.3,37.16]
[1743269848382,61.90162801,125.39,125.3,37.16]
[1743269848682,5.06628468,125.38,125.29,37.16]
[1743269848874,7.9841,125.31,125.29,37.16]
[1743269849072,0.05873691,125.35,125.29,37.16]
[1743269849380,0.05748134,125.33,125.29,0.05757699]
[1743269849582,0.05748134,125.33,125.21,32.30617068]
[1743269849884,5.06424349,125.32,125.22,38.56214458]
[1743269850173,0.05181525,125.28,125.21,32.30617068]
[1743269850376,0.05181525,125.28,125.22,37.18]
[1743269851281,0.05181525,125.28,125.24,0.05407928]
[1743269855275,7.9869,125.27,125.24,0.05407928]
[1743269855677,0.05181525,125.28,125.24,0.05407928]
[1743269855885,0.05181525,125.28,125.25,7.9877]
[1743269856281,0.05181525,125.28,125.24,0.05407928]
[1743269856282,0.05181525,125.28,125.24,37.23407928]
[1743269857084,0.05181525,125.28,125.27,7.9865]
[1743269858187,44.05085767,125.33,125.25,4.1204]
[1743269858489,44.05085767,125.33,125.25,28.86202801]
[1743269858686,44.05085767,125.33,125.31,7.9837]
[1743269859294,44.05085767,125.33,125.27,37.18]
[1743269859494,44.10360451,125.33,125.31,0.05957007]
[1743269859684,7.9834,125.32,125.31,0.05957007]
[1743269859888,4.30424684,125.33,125.31,0.05957007]
[1743269860285,7.9834,125.32,125.31,0.05957007]
[1743269860490,4.30424684,125.33,125.27,37.18]
[1743269860891,4.30424684,125.33,125.28,7.9853]
[1743269861494,7.984,125.31,125.28,7.9853]
[1743269861692,7.984,125.31,125.29,0.05143098]
[1743269862487,0.05274684,125.33,125.29,0.05143098]
[1743269863494,8.03574684,125.33,125.3,7.9841]
[1743269863794,8.03574684,125.33,125.29,0.05143098]
[1743269864192,8.03574684,125.33,125.3,7.9845]
[1743269864492,0.05274684,125.33,125.29,0.05143098]
[1743269864691,0.05274684,125.33,125.3,7.9845]
[1743269864893,8.03554684,125.33,125.31,37.18]
[1743269865093,0.05274684,125.33,125.31,37.18]
[1743269865487,8.03574684,125.33,125.31,37.18]
[1743269865997,0.05274684,125.33,125.31,45.1638]
[1743269867595,0.05274684,125.33,125.31,37.18]
[1743269868498,7.9834,125.32,125.31,37.18]
[1743269868696,0.05274684,125.33,125.29,0.05143098]
[1743269869598,8.03554684,125.33,125.29,0.05143098]
[1743269869891,0.05274684,125.33,125.29,0.05143098]
[1743269870092,20.5151124,125.32,125.22,37.16]
[1743269870400,19.44216922,125.32,125.24,7.9879]
[1743269870598,19.44216922,125.32,125.22,37.16]
[1743269870799,19.44216922,125.32,125.23,4.3005]
[1743269871193,8.04533019,125.29,125.26,0.06122015]
[1743269871395,0.05973019,125.29,125.28,7.9859]
[1743269871596,8.2005,125.37,125.26,37.22122015]
[1743269871798,7.9828,125.33,125.26,37.16]
[1743269872001,8.2005,125.37,125.31,7.9838]
[1743269872196,8.2005,125.37,125.31,45.1438]
[1743269872397,7.9826,125.34,125.31,45.1438]
[1743269872596,0.05389724,125.34,125.31,37.21471754]
[1743269873001,0.05389724,125.34,125.31,0.05471754]
[1743269873503,7.9834,125.32,125.31,0.05471754]
[1743269873695,0.05389724,125.34,125.31,0.05471754]
[1743269874699,7.9834,125.32,125.31,0.05471754]
[1743269877602,15.52666646,125.34,125.27,37.16]
[1743269877795,15.47276922,125.32,125.23,8.6526]
[1743269878106,7.9869,125.27,125.24,37.16]
[1743269878599,8.2333,125.31,125.23,45.8126]
[1743269878808,0.05769458,125.27,125.24,0.05670199]
[1743269879213,7.9875,125.26,125.24,0.05670199]
[1743269879810,7.9878,125.25,125.24,0.05670199]
[1743269880104,0.05769458,125.27,125.24,0.05670199]
[1743269880403,7.9876,125.26,125.24,0.05670199]
[1743269880906,7.9878,125.25,125.24,0.05670199]
[1743269882302,7.9875,125.26,125.24,0.05670199]
[1743269882506,0.05769458,125.27,125.24,0.05670199]
[1743269882903,0.05769458,125.27,125.25,7.9878]
[1743269883106,0.05769458,125.27,125.24,0.05670199]
[1743269883909,7.9876,125.26,125.24,0.05670199]
[1743269884908,7.9878,125.25,125.24,0.05670199]
[1743269885606,7.9875,125.26,125.24,0.05670199]
[1743269885798,0.05769458,125.27,125.24,0.05670199]
[1743269886407,7.9878,125.25,125.24,0.05670199]
[1743269888410,4.0525,125.26,125.15,4.3682]
[1743269888605,28.79758853,125.24,125.16,37.16]
[1743269889606,7.991,125.2,125.19,0.05901121]
[1743269890602,0.0589308,125.21,125.19,0.05901121]
[1743269891610,8.0496308,125.21,125.19,0.05901121]
[1743269892007,0.0589308,125.21,125.19,0.05901121]
[1743269892411,7.991,125.2,125.19,0.05901121]
[1743269896816,7.994,125.16,125.11,267.3855]
[1743269897014,7.994,125.16,125.14,37.16]
[1743269897318,7.995,125.14,125.11,37.16]
[1743269897518,4.2007,125.2,125.09,4.0715]
[1743269897719,4.2007,125.2,125.1,37.16]
[1743269898016,0.05818216,125.16,125.14,0.05207365]
[1743269898217,0.05818216,125.16,125.05,263.44]
[1743269898523,37.16,125.17,125.08,45.1583]
[1743269898720,24.77658853,125.15,125.05,37.16]
[1743269898925,19.72908317,125.14,125.08,7.9986]
[1743269899221,19.72908317,125.14,125.05,37.16]
[1743269899420,4.2007,125.14,125.05,37.16]
[1743269899622,0.05232216,125.12,125.1,0.05952324]
[1743269899919,7.9968,125.11,125.1,0.05952324]
[1743269900119,0.05232216,125.12,125.06,45.1594]
[1743269900316,7.9984,125.09,125.06,45.1594]
[1743269900523,37.16,125.13,125.06,45.1594]
[1743269900916,7.9977,125.1,125.06,7.9994]
[1743269901119,37.16,125.13,125.07,8.04676426]
[1743269901316,0.05524481,125.09,125.07,0.04776426]
[1743269902019,0.05524481,125.09,125.07,8.04686426]
[1743269902221,0.05524481,125.09,125.07,0.04776426]
[1743269902722,0.05524481,125.09,125.08,7.9987]
[1743269902924,0.05524481,125.09,125.07,0.04776426]
[1743269903620,0.05524481,125.09,125.08,7.9987]
[1743269903922,0.05524481,125.09,125.07,0.04776426]
[1743269904127,0.05524481,125.09,125.07,8.04666426]
[1743269904824,0.05524481,125.09,125.08,7.9987]
[1743269905321,0.05524481,125.09,125.07,8.04676426]
[1743269905624,0.05524481,125.09,125.07,0.04776426]
[1743269907324,0.05524481,125.09,125.07,8.04676426]
[1743269907620,0.05524481,125.09,125.07,0.04776426]
[1743269908224,0.05524481,125.09,125.08,7.9987]
[1743269909017,0.05524481,125.09,125.07,8.04676426]
[1743269909222,0.05524481,125.09,125.07,0.04776426]
[1743269909521,7.9987,125.08,125.07,0.04776426]
[1743269910217,8.0,125.08,124.99,1.40491839]
[1743269910418,4.3087,125.07,124.99,37.16]
[1743269910623,4.3087,125.07,125.01,8.0025]
[1743269910824,4.3087,125.07,124.99,37.16]
[1743269911229,4.3087,125.07,125.01,8.0029]
[1743269911529,0.05890248,125.04,124.99,37.16]
[1743269912128,0.05890248,125.04,125.0,4.3447]
[1743269912319,0.05890248,125.04,125.0,8.7163]
[1743269912519,0.05890248,125.04,125.03,8.0019]
[1743269912724,37.16,125.1,125.03,37.16]
[1743269912930,4.1833,125.11,125.03,37.16]
[1743269913129,7.9994,125.07,125.04,8.001]
[1743269913426,4.1833,125.11,125.03,37.16]
[1743269914028,0.0613912,125.08,125.06,0.05890248]
[1743269914227,7.9993,125.07,125.06,0.05890248]
[1743269917227,0.0613912,125.08,125.06,0.05890248]
[1743269917731,7.9985,125.07,125.06,0.05890248]
[1743269919631,8.0595912,125.08,125.06,0.05890248]
[1743269920435,8.0595912,125.08,125.06,8.05790248]
[1743269920837,7.9985,125.07,125.06,0.05890248]
[1743269922742,8.0021,125.02,124.97,15.53244695]
[1743269922936,8.0021,125.02,124.98,37.18]
[1743269923134,15.53244695,125.06,124.99,37.18]
[1743269923331,8.0014,125.03,124.99,37.18]
[1743269923933,15.53244695,125.06,124.99,37.18]
[1743269923934,8.05996211,125.02,124.99,37.18]
[1743269924744,0.05786211,125.02,124.99,37.18]
[1743269925245,0.05786211,125.02,124.95,23.68484695]
[1743269925546,0.05786211,125.02,124.96,37.18]
[1743269925840,8.0027,125.01,124.98,8.004]
[1743269926140,0.05786211,125.02,124.98,37.18]
[1743269926344,8.0033,125.0,124.98,37.18]
[1743269926645,0.05786211,125.02,124.98,37.18]
[1743269926842,8.0026,125.01,124.98,45.1838]
[1743269927239,8.0026,125.01,124.98,37.18]
[1743269927543,8.05966211,125.02,124.98,37.18]
[1743269927742,0.05786211,125.02,124.98,37.18]
[1743269927942,8.05986211,125.02,124.95,19.67464695]
[1743269928147,8.05986211,125.02,124.96,37.18]
[1743269928346,0.05786211,125.02,125.0,8.0028]
[1743269928543,0.05786211,125.02,125.0,45.1828]
[1743269929145,72.80347728,125.07,125.0,60.71244695]
[1743269929347,72.80347728,125.07,125.0,52.71244695]
[1743269929543,72.80347728,125.07,125.01,8.0021]
[1743269929740,72.80347728,125.07,125.01,37.18]
[1743269930042,7.9998,125.06,125.02,37.18]
[1743269930347,0.05667541,125.05,125.03,0.05044852]
[1743269930547,8.05647541,125.05,125.03,0.05044852]
[1743269930744,0.05667541,125.05,125.03,0.05044852]
[1743269931144,8.05687541,125.05,125.03,0.05044852]
[1743269931449,0.05667541,125.05,125.03,8.05154852]
[1743269932149,0.05667541,125.05,125.04,8.0004]
[1743269933749,0.05667541,125.05,125.03,45.23124852]
[1743269934250,0.05667541,125.05,125.04,8.0004]
[1743269938054,7.541e-05,125.05,125.04,8.0004]
[1743269940051,25.91790214,125.09,125.08,7.9979]
[1743269940250,25.91790214,125.09,125.08,45.1579]
[1743269940652,19.33910214,125.09,125.08,45.1579]
[1743269941056,10.94421074,125.12,125.08,37.16]
[1743269941252,0.0557086,125.1,125.08,37.16]
[1743269941558,10.94421074,125.12,125.11,7.996]
[1743269942057,68.68625742,125.12,125.02,4.3667]
[1743269942257,5.05296499,125.11,125.03,1.40451657]
[1743269942558,5.05296499,125.11,125.02,4.3667]
[1743269942559,7.9993,125.06,125.01,37.16]
[1743269942757,15.53244695,125.1,125.06,0.06051336]
[1743269942959,8.0005,125.04,124.99,37.16]
[1743269943361,0.05310829,125.03,125.0,0.06119526]
[1743269944161,8.05430829,125.03,125.0,0.06119526]
[1743269944854,8.0018,125.02,125.0,0.06119526]
[1743269945458,0.05310829,125.03,125.0,0.06119526]
[1743269946661,8.0023,125.01,125.0,0.06119526]
[1743269954562,8.0,125.01,124.92,8.0076]
[1743269954856,57.74604385,125.0,124.89,76.51157575]
[1743269955063,41.296,124.99,124.9,1.40605274]
[1743269955260,41.296,124.99,124.91,8.0087]
[1743269955459,41.296,124.99,124.92,1.40605274]
[1743269955658,41.296,124.99,124.9,37.16]
[1743269955863,41.296,124.99,124.94,0.06137356]
[1743269955864,0.05416122,124.97,124.94,0.06137356]
[1743269956265,8.0062,124.95,124.94,0.06137356]
[1743269960163,0.05416122,124.97,124.94,0.06137356]
[1743269961069,0.05416122,124.97,124.94,8.06787356]
[1743269961270,0.05416122,124.97,124.94,0.06137356]
[1743269962369,0.05416122,124.97,124.95,8.0058]
[1743269962869,0.05416122,124.97,124.96,8.0056]
[1743269964069,263.84,125.04,124.94,15.59382051]
[1743269964265,15.53244695,125.06,124.96,15.53244695]
[1743269964462,8.0007,125.04,124.97,37.16]
[1743269964667,8.5282,125.07,125.01,8.0019]
[1743269964870,8.5282,125.07,125.01,37.16]
[1743269965371,8.5282,125.07,125.03,0.05359353]
[1743269965372,0.05999752,125.05,125.03,0.05359353]
[1743269966465,8.0004,125.04,125.03,0.05359353]
[1743269967568,8.0004,125.04,124.95,8.0059]
[1743269967569,15.53244695,125.04,124.95,8.0059]
[1743269967868,15.53244695,125.02,124.95,45.1659]
[1743269968073,4.3287,125.01,124.95,37.16]
[1743269968275,4.3287,125.01,124.96,8.005]
[1743269968676,4.3287,125.01,124.97,0.05294992]
[1743269968677,8.05736768,125.0,124.97,0.05294992]
[1743269968875,0.05386768,125.0,124.97,0.05294992]
[1743269969178,8.0043,124.98,124.97,0.05294992]
[1743269969372,0.05386768,125.0,124.97,0.05294992]
[1743269969876,8.0039,124.99,124.97,0.05294992]
[1743269970675,8.0043,124.98,124.97,0.05294992]
[1743269971170,8.0037,124.99,124.93,263.94]
[1743269971383,4.3287,125.01,124.97,8.0049]
[1743269971880,4.3287,125.01,124.94,37.16]
[1743269972378,0.06111527,124.99,124.96,8.05675578]
[1743269972676,0.06111527,124.99,124.96,0.05185578]
[1743269973377,8.06501527,124.99,124.96,8.05715578]
[1743269973776,0.06111527,124.99,124.96,0.05185578]
[1743269974079,8.0046,124.98,124.96,0.05185578]
[1743269974678,8.0049,124.97,124.96,0.05185578]
[1743269975075,8.0071,124.94,124.87,279.45244695]
[1743269975375,4.1483,124.98,124.88,38.54616599]
[1743269975574,4.1483,124.98,124.89,16.93861294]
[1743269975775,8.0053,124.97,124.9,1.40616599]
[1743269975972,41.4687,125.01,124.9,1.40616599]
[1743269976173,41.4687,125.01,124.91,16.93861294]
[1743269976174,8.0034,125.0,124.91,16.93861294]
[1743269976373,0.05165684,124.97,124.93,15.53244695]
[1743269976677,0.05165684,124.97,124.94,1.40616599]
[1743269976979,4.215,125.03,124.93,15.53244695]
[1743269977179,4.215,125.03,124.94,5.52887599]
[1743269977374,4.215,125.03,124.95,1.40574665]
[1743269977580,4.215,125.03,124.96,37.14]
[1743269977783,12.2164,125.03,125.0,8.0027]
[1743269978083,4.215,125.03,124.96,37.14]
[1743269978278,4.26710007,125.03,125.0,0.05174229]
[1743269978772,0.05210007,125.03,125.0,0.05174229]
[1743269978970,0.05210007,125.03,125.0,37.19174229]
[1743269979878,0.05210007,125.03,125.01,8.0023]
[1743269982285,0.05210007,125.03,125.02,8.0017]
[1743269984778,0.05210007,125.03,125.0,37.19174229]
[1743269985287,0.05210007,125.03,125.0,0.05174229]
[1743269985485,0.05210007,125.03,125.01,8.0018]
[1743269985684,0.05210007,125.03,125.0,37.17174229]
[1743269986085,0.05210007,125.03,125.02,8.0017]
[1743269987176,4.3137,125.08,125.05,7.9993]
[1743269987581,4.3137,125.08,125.06,7.9991]
[1743269987786,4.3137,125.08,125.04,37.12]
[1743269988183,12.3119,125.08,125.05,0.05804182]
[1743269988388,0.05506977,125.07,125.05,0.05804182]
[1743269990990,0.05506977,125.07,125.06,7.9992]
[1743269991197,5.05214243,125.11,125.05,15.59048877]
[1743269991395,331.82162168,125.16,125.05,15.53244695]
[1743269991596,7.9957,125.12,125.08,7.9972]
[1743269991795,7.9957,125.12,125.09,37.1]
[1743269992295,0.05055447,125.12,125.09,37.16076786]
[1743269992899,8.04595447,125.12,125.09,37.16076786]
[1743269993099,0.05055447,125.12,125.09,37.16076786]
[1743269993499,0.05055447,125.12,125.09,45.15766786]
[1743269993695,0.05055447,125.12,125.09,0.06076786]
[1743269994190,7.9962,125.11,125.09,0.06076786]
[1743269994394,0.05055447,125.12,125.09,0.06076786]
[1743269995000,0.05055447,125.12,125.1,7.9962]
[1743269996403,0.05055447,125.12,125.11,7.996]
[1743269996601,43.97007473,125.21,125.11,15.53244695]
[1743269996801,43.97007473,125.21,125.13,15.53244695]
[1743269997004,7.9909,125.19,125.15,7.993]
[1743269997301,43.97007473,125.21,125.14,37.1]
[1743269997700,0.05756994,125.19,125.16,0.05080207]
[1743269998202,7.9918,125.18,125.16,0.05080207]
[1743269998602,7.9921,125.17,125.16,0.05080207]
[1743269998905,0.05756994,125.19,125.16,0.05080207]
[1743269999708,7.9921,125.17,125.16,0.05080207]
[1743270000204,15.59001689,125.19,125.11,37.08]
[1743270000405,15.53244695,125.17,125.11,37.08]
[1743270000606,4.2124,125.16,125.11,37.08]
[1743270001006,15.53244695,125.15,125.05,3.9832]
[1743270001205,52.61244695,125.15,125.06,1.40433049]
[1743270001407,0.05390762,125.11,125.09,0.05499487]
[1743270003405,0.05390762,125.11,125.1,37.08]
[1743270005604,0.05390762,125.11,125.1,37.06]
[1743270006104,0.05390762,125.11,125.09,37.11499487]
[1743270006708,0.05390762,125.11,125.1,7.9966]
[1743270007806,0.05390762,125.11,125.09,45.11189487]
[1743270008008,0.05390762,125.11,125.09,37.11499487]
[1743270008712,0.05390762,125.11,125.09,0.05499487]
[1743270009013,8.05010762,125.11,125.09,0.05499487]
[1743270009209,0.05390762,125.11,125.09,0.05499487]
[1743270009515,7.9966,125.1,125.09,0.05499487]
[1743270009708,0.05390762,125.11,125.09,0.05499487]
[1743270009906,0.05390762,125.11,125.09,8.05189487]
[1743270010414,0.05390762,125.11,125.1,7.9966]
[1743270012914,4.2723,125.18,125.09,0.05499487]